bitfinex-derivatives/quotes_SOLF0:USTF0_20250312
["timestamp","ask_amount","ask_price","bid_price","bid_amount"]
[1741743086664,57.04090371,125.96,125.87,93.00471887]
[1741743086865,7.9435,125.93,125.89,7.9452]
[1741743087261,30.82,125.93,125.87,93.00471887]
[1741743087762,0.05529029,125.91,125.89,0.05024056]
[1741743088163,0.05529029,125.91,125.9,7.945]
[1741743088867,0.05529029,125.91,125.89,0.05024056]
[1741743089362,0.05529029,125.91,125.9,7.945]
[1741743090464,0.05529029,125.91,125.89,0.05024056]
[1741743091766,0.05529029,125.91,125.9,7.945]
[1741743092265,0.05529029,125.91,125.89,7.99564056]
[1741743092466,0.05529029,125.91,125.89,0.05024056]
[1741743092865,0.05529029,125.91,125.9,7.945]
[1741743093365,0.05529029,125.91,125.89,7.99574056]
[1741743093764,0.05529029,125.91,125.89,0.05024056]
[1741743093965,0.05529029,125.91,125.9,7.945]
[1741743094168,0.05529029,125.91,125.89,0.05024056]
[1741743094467,0.05529029,125.91,125.9,7.945]
[1741743094666,0.05529029,125.91,125.89,0.05024056]
[1741743094967,30.8,125.9,125.89,0.05024056]
[1741743095266,30.8,125.9,125.83,6.2407]
[1741743095467,30.8,125.9,125.83,4.2211]
[1741743095667,7.9459,125.89,125.86,7.9475]
[1741743095968,57.18090371,125.9,125.79,26.38090371]
[1741743096167,7.9485,125.85,125.81,7.9503]
[1741743096365,7.9485,125.85,125.83,0.05136457]
[1741743096667,30.85114946,125.86,125.83,0.05136457]
[1741743097060,30.85114946,125.86,125.84,7.9487]
[1741743097267,30.85114946,125.86,125.83,0.05136457]
[1741743098068,0.05114946,125.86,125.83,0.05136457]
[1741743098272,0.05114946,125.86,125.85,7.9481]
[1741743098462,0.05114946,125.86,125.83,0.05136457]
[1741743099468,0.05114946,125.86,125.84,7.9483]
[1741743099870,0.05114946,125.86,125.83,0.05136457]
[1741743100171,0.05114946,125.86,125.85,7.9481]
[1741743115590,4.946e-05,125.86,125.85,24.51609074]
[1741743116390,4.946e-05,125.86,125.85,55.09609074]
[1741743117189,226.6533,125.93,125.85,47.14799074]
[1741743117490,12.0365,125.93,125.85,47.14799074]
[1741743117793,34.6533,125.93,125.85,47.14799074]
[1741743117993,7.9447,125.91,125.85,30.58]
[1741743118296,0.05156766,125.89,125.87,0.05436891]
[1741743120493,0.05156766,125.89,125.87,8.00096891]
[1741743120696,30.51156766,125.89,125.87,0.05436891]
[1741743121085,30.51156766,125.89,125.88,7.9462]
[1741743121288,30.51156766,125.89,125.87,0.05436891]
[1741743121590,7.9462,125.88,125.87,0.05436891]
[1741743121785,30.51156766,125.89,125.87,0.05436891]
[1741743123796,38.45776766,125.89,125.87,0.05436891]
[1741743124299,30.51156766,125.89,125.87,0.05436891]
[1741743124799,30.51156766,125.89,125.88,7.9462]
[1741743125095,0.05156766,125.89,125.88,7.9462]
[1741743126603,0.05156766,125.89,125.87,0.05436891]
[1741743128402,0.05156766,125.89,125.88,7.9462]
[1741743129493,0.05156766,125.89,125.87,8.00096891]
[1741743129698,0.05156766,125.89,125.87,0.05436891]
[1741743131996,7.9462,125.88,125.87,0.05436891]
[1741743132205,30.42,125.88,125.83,7.949]
[1741743132399,30.42,125.88,125.81,34.485]
[1741743132706,7.9472,125.87,125.83,7.949]
[1741743133004,30.42,125.88,125.81,34.485]
[1741743133404,0.05348875,125.86,125.83,0.05576327]
[1741743133805,0.05348875,125.86,125.85,7.9481]
[1741743134699,8.875e-05,125.86,125.85,24.51609074]
[1741743137801,8.875e-05,125.86,125.84,7.9485]
[1741743139007,8.875e-05,125.86,125.85,7.9481]
[1741743139701,8.875e-05,125.86,125.83,0.05576327]
[1741743140912,8.875e-05,125.86,125.84,7.9482]
[1741743141113,8.875e-05,125.86,125.83,0.05576327]
[1741743141511,8.875e-05,125.86,125.85,7.9481]
[1741743142206,30.58008875,125.86,125.83,0.05576327]
[1741743142513,30.58008875,125.86,125.74,86.75251887]
[1741743142514,16.56799074,125.84,125.74,86.75251887]
[1741743142701,16.56799074,125.78,125.74,86.75251887]
[1741743143011,16.56799074,125.76,125.74,4.04986405]
[1741743143315,30.76,125.75,125.74,4.04986405]
[1741743143613,30.76,125.75,125.74,4.10604588]
[1741743144811,57.33786602,125.75,125.73,126.98537831]
[1741743145004,59.71786602,125.75,125.72,356.86801777]
[1741743145210,34.53356602,125.73,125.72,246.52660148]
[1741743145604,26.57786602,125.73,125.72,246.52660148]
[1741743145810,192.0,125.74,125.65,63.59596602]
[1741743146011,30.86,125.74,125.71,0.06071012]
[1741743146309,0.05746759,125.71,125.65,37.0181]
[1741743146611,30.86,125.74,125.65,63.59596602]
[1741743146819,0.0570171,125.69,125.67,0.06076349]
[1741743147005,63.92466602,125.77,125.65,63.59596602]
[1741743147500,30.9,125.77,125.67,26.57786602]
[1741743147807,30.9,125.77,125.7,7.9575]
[1741743148106,0.05747628,125.75,125.72,0.06085141]
[1741743148317,111.64239681,125.73,125.72,0.06085141]
[1741743148612,105.03589681,125.73,125.72,0.06085141]
[1741743149004,105.03589681,125.73,125.72,8.01675141]
[1741743150206,0.05747628,125.75,125.73,7.9552]
[1741743150403,0.05747628,125.75,125.72,0.06085141]
[1741743150902,0.05747628,125.75,125.73,7.9557]
[1741743151106,0.05747628,125.75,125.72,0.06085141]
[1741743151712,31.05747628,125.75,125.72,0.06085141]
[1741743152513,31.05747628,125.75,125.74,7.9551]
[1741743152714,0.05747628,125.75,125.74,7.9551]
[1741743153416,31.04,125.8,125.73,26.57786602]
[1741743153714,43.71448085,125.81,125.75,26.57786602]
[1741743154014,43.71448085,125.81,125.8,7.9513]
[1741743155409,40.41258085,125.81,125.8,7.9513]
[1741743155607,0.05744622,125.82,125.79,14.42143059]
[1741743155815,0.05744622,125.82,125.81,7.9507]
[1741743156220,40.41258085,125.85,125.84,7.9488]
[1741743156418,17.49978085,125.85,125.84,7.9488]
[1741743156621,32.71948385,125.89,125.83,57.63786602]
[1741743157118,32.71948385,125.89,125.86,7.9469]
[1741743157316,32.71948385,125.89,125.85,26.63347407]
[1741743157614,5.751e-05,125.87,125.86,7.9475]
[1741743157819,8.79008385,125.89,125.86,31.04]
[1741743158119,204.91791239,125.91,125.88,53.15573204]
[1741743158414,293.53927826,125.92,125.9,26.57786602]
[1741743158824,271.90449393,125.92,125.91,7.9444]
[1741743159121,271.95689904,125.92,125.91,7.9444]
[1741743159314,0.05240511,125.92,125.91,7.9444]
[1741743160115,0.05240511,125.92,125.9,34.58002429]
[1741743160316,0.05240511,125.92,125.9,26.63512429]
[1741743160617,41.0804,126.01,125.93,7.9426]
[1741743160819,33.1423,126.01,125.93,57.65786602]
[1741743161021,33.1423,126.01,125.93,31.08]
[1741743161216,7.94,125.98,125.93,31.08]
[1741743161413,31.1,125.98,125.91,26.57786602]
[1741743161616,31.1,125.98,125.9,31.1]
[1741743161617,0.06107249,125.97,125.94,0.05429355]
[1741743164825,7.9412,125.96,125.94,0.05429355]
[1741743165122,0.06107249,125.97,125.94,0.05429355]
[1741743166419,0.06107249,125.97,125.94,7.99619355]
[1741743166618,0.06107249,125.97,125.94,0.05429355]
[1741743167020,8.00177249,125.97,125.94,0.05429355]
[1741743167323,0.06107249,125.97,125.94,0.05429355]
[1741743167524,30.94,125.96,125.94,0.05429355]
[1741743167721,30.94,125.96,125.87,57.51786602]
[1741743168024,4.0394,125.95,125.87,26.57786602]
[1741743168425,4.0394,125.95,125.86,2.0366]
[1741743168725,7.9447,125.91,125.86,9.9837]
[1741743168921,7.9447,125.91,125.89,0.05540136]
[1741743169126,0.05803685,125.92,125.89,0.05540136]
[1741743172028,26.63590287,125.92,125.81,57.45786602]
[1741743172223,26.57786602,125.92,125.81,57.45786602]
[1741743172425,7.9457,125.89,125.84,7.9487]
[1741743172621,30.86,125.89,125.8,238.58893605]
[1741743172824,7.9469,125.87,125.82,7.9495]
[1741743173220,0.05892121,125.86,125.83,0.05375532]
[1741743173529,0.05892121,125.86,125.83,8.00305532]
[1741743173831,0.05892121,125.86,125.83,0.05375532]
[1741743174029,30.91892121,125.86,125.83,0.05375532]
[1741743174631,30.91892121,125.86,125.83,8.00305532]
[1741743175133,30.91892121,125.86,125.84,7.9488]
[1741743175331,30.91892121,125.86,125.83,0.05375532]
[1741743176333,30.91892121,125.86,125.85,7.9481]
[1741743176630,0.05892121,125.86,125.85,7.9481]
[1741743176830,0.05892121,125.86,125.84,7.9486]
[1741743178033,0.05892121,125.86,125.83,8.00295532]
[1741743178432,8.00642121,125.86,125.83,0.05375532]
[1741743178631,38.74642121,125.86,125.83,0.05375532]
[1741743179137,30.79892121,125.86,125.83,0.05375532]
[1741743180034,30.79892121,125.86,125.77,57.31786602]
[1741743180234,30.74,125.86,125.77,57.31786602]
[1741743180434,57.31786602,125.86,125.76,238.28]
[1741743180830,7.9485,125.85,125.8,7.9509]
[1741743181026,30.74,125.86,125.76,269.04]
[1741743181331,0.05208826,125.84,125.81,0.05864202]
[1741743181535,30.72,125.83,125.81,0.05864202]
[1741743182628,0.05208826,125.84,125.81,0.05864202]
[1741743183233,0.05208826,125.84,125.83,7.9494]
[1741743183634,0.05208826,125.84,125.81,0.05864202]
[1741743184232,8.00118826,125.84,125.81,0.05864202]
[1741743184534,0.05208826,125.84,125.81,0.05864202]
[1741743185337,0.05208826,125.84,125.83,7.9494]
[1741743185535,0.05208826,125.84,125.81,0.05864202]
[1741743186940,0.05208826,125.84,125.81,8.00914202]
[1741743187340,0.05208826,125.84,125.81,0.05864202]
[1741743187535,0.05208826,125.84,125.83,7.9494]
[1741743189543,8.826e-05,125.84,125.83,7.9494]
[1741743190938,36.7816,125.91,125.83,2.38]
[1741743191235,6.1016,125.91,125.84,57.25786602]
[1741743191440,30.68,125.93,125.85,30.68]
[1741743191645,32.66646602,125.96,125.9,7.9446]
[1741743191843,30.72,125.95,125.9,7.9446]
[1741743192241,0.06031559,125.94,125.91,7.99965765]
[1741743192442,30.72,125.95,125.91,7.99965765]
[1741743192641,0.05375884,125.94,125.91,0.05535765]
[1741743193445,0.05375884,125.94,125.92,7.9434]
[1741743193642,0.05375884,125.94,125.91,0.05535765]
[1741743198949,7.99665884,125.94,125.91,0.05535765]
[1741743199149,0.05375884,125.94,125.91,0.05535765]
[1741743199548,7.9435,125.93,125.91,0.05535765]
[1741743200049,7.9437,125.92,125.91,0.05535765]
[1741743200254,0.05375884,125.94,125.91,0.05535765]
[1741743200851,7.99645884,125.94,125.91,0.05535765]
[1741743201152,0.05375884,125.94,125.91,0.05535765]
[1741743201446,0.05375884,125.94,125.91,7.99945765]
[1741743201750,0.05375884,125.94,125.91,0.05535765]
[1741743201951,7.99625884,125.94,125.91,0.05535765]
[1741743203551,0.05375884,125.94,125.91,0.05535765]
[1741743205259,0.05375884,125.94,125.91,7.99935765]
[1741743205555,0.05375884,125.94,125.91,0.05535765]
[1741743205856,0.05375884,125.94,125.91,7.99955765]
[1741743206156,7.99625884,125.94,125.91,0.05535765]
[1741743208958,7.9431,125.93,125.91,0.05535765]
[1741743209159,0.05375884,125.94,125.91,0.05535765]
[1741743209556,7.99655884,125.94,125.91,0.05535765]
[1741743210451,7.9431,125.93,125.91,0.05535765]
[1741743210655,0.05375884,125.94,125.91,0.05535765]
[1741743210962,7.9432,125.93,125.91,0.05535765]
[1741743211659,0.05375884,125.94,125.91,0.05535765]
[1741743211961,7.99635884,125.94,125.91,7.99935765]
[1741743212464,16.55479067,125.93,125.84,254.93479067]
[1741743212760,16.55479067,125.91,125.82,16.55479067]
[1741743213157,7.9466,125.88,125.84,7.9485]
[1741743213354,30.32,125.89,125.82,16.55479067]
[1741743213556,0.05081358,125.87,125.86,7.9471]
[1741743213756,0.05081358,125.87,125.84,0.05904064]
[1741743214158,0.05081358,125.87,125.84,8.00744064]
[1741743214463,0.05081358,125.87,125.84,0.05904064]
[1741743215563,0.05081358,125.87,125.85,7.9476]
[1741743215968,0.05081358,125.87,125.84,0.05904064]
[1741743216157,7.9481,125.85,125.84,0.05904064]
[1741743216464,16.60560425,125.87,125.84,0.05904064]
[1741743217258,0.05081358,125.87,125.79,30.3]
[1741743217559,46.87479067,125.89,125.83,7.9492]
[1741743217754,48.89639067,125.89,125.83,7.9492]
[1741743217973,7.9475,125.86,125.82,7.9497]
[1741743218352,0.0539434,125.85,125.83,0.05795756]
[1741743218553,7.9488,125.84,125.83,0.05795756]
[1741743219559,16.60873407,125.85,125.77,268.58]
[1741743219760,16.55479067,125.85,125.8,7.9508]
[1741743219953,30.3,125.86,125.78,16.55479067]
[1741743220159,30.3,125.86,125.8,16.55479067]
[1741743220359,30.3,125.86,125.82,7.9496]
[1741743220562,30.3,125.86,125.8,30.3]
[1741743220863,7.9488,125.84,125.83,0.05482249]
[1741743221062,0.06097242,125.85,125.83,0.05482249]
[1741743222562,8.00947242,125.85,125.83,0.05482249]
[1741743222960,0.06097242,125.85,125.83,0.05482249]
[1741743223766,0.06097242,125.85,125.83,8.00412249]
[1741743224475,0.06097242,125.85,125.84,7.9488]
[1741743224672,0.06097242,125.85,125.83,0.05482249]
[1741743225468,8.00947242,125.85,125.83,0.05482249]
[1741743225768,0.06097242,125.85,125.83,0.05482249]
[1741743225969,7.9488,125.84,125.83,0.05482249]
[1741743226172,46.91576309,125.85,125.75,20.78749067]
[1741743226372,16.55479067,125.81,125.72,2.0427]
[1741743226674,46.85479067,125.81,125.74,7.9548]
[1741743226979,2.0469,125.8,125.72,30.3]
[1741743227278,9.9985,125.8,125.76,7.9535]
[1741743227472,0.05580654,125.77,125.76,7.9535]
[1741743229769,0.05580654,125.77,125.75,30.39650917]
[1741743229975,0.05580654,125.77,125.76,7.9538]
[1741743235181,0.05580654,125.77,125.75,38.35060917]
[1741743235375,0.05580654,125.77,125.75,0.05650917]
[1741743235772,0.05580654,125.77,125.76,7.9538]
[1741743236079,0.05580654,125.77,125.76,38.2738]
[1741743236280,6.54e-06,125.77,125.76,38.2738]
[1741743236871,2.1106,125.83,125.76,38.2738]
[1741743237077,2.1106,125.83,125.81,7.9503]
[1741743237287,2.1106,125.83,125.78,16.55479067]
[1741743237674,2.1106,125.83,125.8,7.9511]
[1741743237884,2.0946,125.84,125.78,16.55479067]
[1741743238082,0.06079512,125.83,125.8,16.60986752]
[1741743238276,0.06079512,125.83,125.82,7.95]
[1741743239085,9.512e-05,125.83,125.82,54.82479067]
[1741743240283,282.25347498,125.93,125.82,65.80958134]
[1741743240588,316.73847498,125.93,125.85,16.55479067]
[1741743240789,272.965,125.93,125.86,7.9473]
[1741743240984,7.9461,125.89,125.83,46.87479067]
[1741743241285,46.87479067,125.9,125.83,7.9492]
[1741743241479,0.05447044,125.87,125.85,0.05793145]
[1741743242886,4.12187044,125.87,125.85,0.05793145]
[1741743243189,12.06887044,125.87,125.85,0.05793145]
[1741743243387,4.12187044,125.87,125.85,0.05793145]
[1741743243688,12.06927044,125.87,125.85,0.05793145]
[1741743243889,4.12187044,125.87,125.85,0.05793145]
[1741743245389,0.05447044,125.87,125.85,0.05793145]
[1741743246089,0.05447044,125.87,125.86,7.9475]
[1741743246284,0.05447044,125.87,125.85,0.05793145]
[1741743247589,7.9475,125.86,125.85,0.05793145]
[1741743247990,30.35447044,125.87,125.79,255.03479067]
[1741743248287,16.55479067,125.84,125.75,46.85479067]
[1741743248486,32.3444,125.83,125.75,46.85479067]
[1741743248790,7.9512,125.81,125.77,7.953]
[1741743249194,0.05017892,125.8,125.78,0.05063215]
[1741743249387,8.00197892,125.8,125.78,0.05063215]
[1741743249788,0.05017892,125.8,125.78,0.05063215]
[1741743251083,0.05017892,125.8,125.78,8.00263215]
[1741743251288,0.05017892,125.8,125.78,0.05063215]
[1741743251888,7.892e-05,125.8,125.79,7.9519]
[1741743252692,7.892e-05,125.8,125.79,38.2719]
[1741743259697,7.892e-05,125.8,125.79,7.9519]
[1741743259901,7.892e-05,125.8,125.78,0.05063215]
[1741743261502,7.892e-05,125.8,125.78,8.00293215]
[1741743261703,7.892e-05,125.8,125.78,0.05063215]
[1741743262498,7.892e-05,125.8,125.79,7.9519]
[1741743268012,7.892e-05,125.8,125.78,0.05063215]
[1741743270711,7.892e-05,125.8,125.79,7.9519]
[1741743271217,7.892e-05,125.8,125.78,0.05063215]
[1741743271613,7.892e-05,125.8,125.78,8.00273215]
[1741743271814,7.892e-05,125.8,125.78,0.05063215]
[1741743272317,7.892e-05,125.8,125.78,8.00283215]
[1741743272617,7.892e-05,125.8,125.78,0.05063215]
[1741743273516,7.892e-05,125.8,125.79,7.9519]
[1741743274015,7.892e-05,125.8,125.78,0.05063215]
[1741743274213,7.892e-05,125.8,125.78,8.00283215]
[1741743275016,7.892e-05,125.8,125.79,7.9519]
[1741743281024,7.892e-05,125.8,125.79,24.53916369]
[1741743283126,4.2912,125.86,125.84,7.9484]
[1741743283432,4.2912,125.86,125.81,16.58726369]
[1741743283928,4.2912,125.86,125.85,7.9481]
[1741743284324,0.05464141,125.87,125.85,7.9481]
[1741743284518,0.05464141,125.87,125.84,0.05079764]
[1741743285031,0.05464141,125.87,125.85,7.9481]
[1741743285226,0.05464141,125.87,125.84,0.05079764]
[1741743285730,0.05464141,125.87,125.86,7.9475]
[1741743289332,0.05464141,125.87,125.84,0.05079764]
[1741743289930,0.05464141,125.87,125.84,7.99919764]
[1741743290548,0.05464141,125.87,125.85,7.9481]
[1741743291333,0.05464141,125.87,125.84,0.05079764]
[1741743292233,0.05464141,125.87,125.86,7.9475]
[1741743293233,0.05464141,125.87,125.84,0.05079764]
[1741743294432,0.05464141,125.87,125.85,7.9475]
[1741743295133,0.05464141,125.87,125.86,7.9475]
[1741743295933,0.05464141,125.87,125.85,7.9479]
[1741743296333,0.05464141,125.87,125.84,0.05079764]
[1741743296533,0.05464141,125.87,125.86,7.9475]
[1741743297633,0.05464141,125.87,125.84,0.05079764]
[1741743297833,0.05464141,125.87,125.86,7.9475]
[1741743298636,0.05464141,125.87,125.85,7.9479]
[1741743298840,0.05464141,125.87,125.84,0.05079764]
[1741743299635,7.9481,125.85,125.84,0.05079764]
[1741743300130,30.35464141,125.87,125.84,0.05079764]
[1741743301332,16.58726369,125.86,125.75,16.58726369]
[1741743301634,16.58726369,125.82,125.74,115.21812824]
[1741743301832,7.9526,125.78,125.74,84.91812824]
[1741743302031,30.3,125.78,125.74,84.91812824]
[1741743302237,46.88726369,125.78,125.74,84.91812824]
[1741743302536,0.05422067,125.77,125.71,84.91812824]
[1741743302731,16.58726369,125.76,125.71,84.91812824]
[1741743303034,16.58726369,125.74,125.7,119.92729759]
[1741743303432,7.9562,125.73,125.7,119.92729759]
[1741743303633,30.3,125.72,125.71,0.0520206]
[1741743304227,0.05996323,125.73,125.71,0.0520206]
[1741743306139,16.58726369,125.72,125.71,0.0520206]
[1741743306334,16.58726369,125.72,125.66,7.9601]
[1741743306536,30.3,125.71,125.66,7.9601]
[1741743307040,30.3,125.71,125.63,20.63306369]
[1741743307635,0.05791328,125.68,125.66,0.05439281]
[1741743308035,46.96517697,125.68,125.59,2.1953]
[1741743308233,16.58726369,125.66,125.59,2.1953]
[1741743308439,30.32,125.65,125.62,7.9626]
[1741743308939,46.90726369,125.68,125.6,30.32]
[1741743309137,46.90726369,125.68,125.62,7.9625]
[1741743309339,0.05294012,125.65,125.63,0.03491697]
[1741743309738,30.37294012,125.65,125.63,0.03491697]
[1741743310340,0.05294012,125.65,125.63,0.03491697]
[1741743310840,0.05294012,125.65,125.63,7.99671697]
[1741743311036,0.05294012,125.65,125.63,0.03491697]
[1741743313340,0.05294012,125.65,125.63,7.99671697]
[1741743313637,0.05294012,125.65,125.63,0.03491697]
[1741743314341,30.34,125.64,125.63,0.03491697]
[1741743317043,46.92726369,125.64,125.63,0.03491697]
[1741743317245,46.92726369,125.64,125.55,16.58726369]
[1741743317745,54.88896369,125.64,125.55,16.58726369]
[1741743318047,46.92726369,125.64,125.55,16.58726369]
[1741743318343,0.05859288,125.61,125.54,36.6968]
[1741743318547,30.34,125.6,125.54,6.3568]
[1741743319046,0.05644451,125.58,125.55,7.9669]
[1741743319245,0.05644451,125.58,125.54,6.3568]
[1741743319847,0.05644451,125.58,125.56,7.9661]
[1741743320046,0.05644451,125.58,125.52,16.58726369]
[1741743320447,0.05644451,125.58,125.55,7.967]
[1741743321151,0.05644451,125.58,125.52,16.58726369]
[1741743321445,0.05644451,125.58,125.5,371.70822994]
[1741743321641,46.92726369,125.6,125.5,371.70822994]
[1741743321846,0.05356429,125.55,125.5,371.70822994]
[1741743323244,0.05356429,125.55,125.47,245.1871]
[1741743323245,0.05356429,125.55,125.47,6.4271]
[1741743323549,30.34,125.54,125.47,23.01436369]
[1741743323847,0.05933066,125.52,125.47,23.01436369]
[1741743324046,0.05933066,125.52,125.47,53.35436369]
[1741743324638,0.05933066,125.52,125.49,16.58726369]
[1741743325448,0.05933066,125.52,125.51,7.9697]
[1741743326753,447.38726369,125.6,125.55,7.9671]
[1741743326953,30.36,125.59,125.51,16.58726369]
[1741743327349,30.36,125.59,125.56,7.966]
[1741743328046,30.41420517,125.59,125.56,8.02533066]
[1741743328352,30.41420517,125.59,125.56,0.05933066]
[1741743329351,30.41420517,125.59,125.56,8.02553066]
[1741743329749,0.05420517,125.59,125.56,8.02553066]
[1741743329943,0.05420517,125.59,125.56,0.05933066]
[1741743330150,8.01910517,125.59,125.56,0.05933066]
[1741743330554,0.05420517,125.59,125.56,0.05933066]
[1741743331155,7.9652,125.58,125.56,0.05933066]
[1741743331455,0.05420517,125.59,125.56,0.05933066]
[1741743333257,0.05420517,125.59,125.57,7.9655]
[1741743334159,0.05420517,125.59,125.56,0.05933066]
[1741743334760,0.05420517,125.59,125.57,7.9659]
[1741743339467,0.05420517,125.59,125.56,8.02553066]
[1741743340067,0.05420517,125.59,125.56,0.05933066]
[1741743340266,8.01920517,125.59,125.56,0.05933066]
[1741743342067,7.9653,125.58,125.56,0.05933066]
[1741743342468,0.05420517,125.59,125.56,0.05933066]
[1741743342669,0.05420517,125.59,125.56,8.02533066]
[1741743343864,8.01880517,125.59,125.56,8.02533066]
[1741743344271,0.05420517,125.59,125.56,8.02533066]
[1741743345066,0.05420517,125.59,125.56,0.05933066]
[1741743345772,0.05420517,125.59,125.58,7.9652]
[1741743349582,0.05420517,125.59,125.57,7.9655]
[1741743350078,0.05420517,125.59,125.56,0.05933066]
[1741743350279,0.05420517,125.59,125.56,8.02543066]
[1741743351180,0.05420517,125.59,125.57,7.9657]
[1741743351381,0.05420517,125.59,125.56,0.05933066]
[1741743352082,0.05420517,125.59,125.58,7.9652]
[1741743355879,0.05420517,125.59,125.56,8.02533066]
[1741743356077,0.05420517,125.59,125.56,0.05933066]
[1741743356583,0.05420517,125.59,125.58,7.9652]
[1741743356985,0.05420517,125.59,125.57,7.9656]
[1741743357183,0.05420517,125.59,125.56,0.05933066]
[1741743359284,0.05420517,125.59,125.56,8.02563066]
[1741743361283,8.01890517,125.59,125.56,0.05933066]
[1741743361787,0.05420517,125.59,125.56,0.05933066]
[1741743362689,0.05420517,125.59,125.57,7.9656]
[1741743363390,0.05420517,125.59,125.56,0.05933066]
[1741743363791,0.05420517,125.59,125.58,7.9652]
[1741743363990,0.05420517,125.59,125.56,0.05933066]
[1741743366591,8.01910517,125.59,125.56,0.05933066]
[1741743366786,0.05420517,125.59,125.56,0.05933066]
[1741743366983,10.65429423,125.58,125.56,0.05933066]
[1741743367188,7.9659,125.57,125.56,0.05933066]
[1741743368089,10.65429423,125.58,125.56,0.05933066]
[1741743368390,30.41420517,125.59,125.56,0.05933066]
[1741743368993,7.9653,125.58,125.56,0.05933066]
[1741743369192,30.41420517,125.59,125.56,0.05933066]
[1741743369788,38.37910517,125.59,125.56,0.05933066]
[1741743371796,0.05420517,125.59,125.58,7.9652]
[1741743372190,0.05420517,125.59,125.56,0.05933066]
[1741743372490,0.05420517,125.59,125.57,7.9655]
[1741743372789,0.05420517,125.59,125.58,7.9652]
[1741743373196,0.05420517,125.59,125.56,0.05933066]
[1741743373591,8.01910517,125.59,125.56,0.05933066]
[1741743374898,8.01910517,125.59,125.56,8.02573066]
[1741743376095,7.9653,125.58,125.56,8.02573066]
[1741743376898,8.01920517,125.59,125.56,8.02573066]
[1741743377099,0.05420517,125.59,125.56,0.05933066]
[1741743377793,0.05420517,125.59,125.58,7.9652]
[1741743377994,10.98293593,125.63,125.56,0.05933066]
[1741743378299,10.98293593,125.63,125.59,7.9643]
[1741743378500,10.98293593,125.63,125.55,47.00994519]
[1741743379000,16.64994519,125.6,125.53,36.7262]
[1741743379300,30.39827596,125.6,125.56,7.9662]
[1741743379691,30.39827596,125.6,125.55,0.05848176]
[1741743379900,30.39827596,125.6,125.56,7.9665]
[1741743380100,30.39827596,125.6,125.55,0.05848176]
[1741743380696,7.9658,125.58,125.55,0.05848176]
[1741743380897,47.04822115,125.6,125.55,0.05848176]
[1741743381292,7.9656,125.58,125.55,0.05848176]
[1741743381597,47.04822115,125.6,125.55,8.02528176]
[1741743381799,8.02237596,125.6,125.55,0.05848176]
[1741743381997,8.02237596,125.6,125.56,7.9662]
[1741743382995,0.05827596,125.6,125.55,0.05848176]
[1741743383193,0.05827596,125.6,125.55,47.04842695]
[1741743383399,0.05827596,125.6,125.57,16.64994519]
[1741743383594,0.05827596,125.6,125.58,7.9648]
[1741743383897,0.05827596,125.6,125.57,16.64994519]
[1741743384098,0.05827596,125.6,125.58,0.05733256]
[1741743384900,0.05827596,125.6,125.59,7.9646]
[1741743388211,34.3535,125.65,125.58,30.39733256]
[1741743388411,34.3535,125.65,125.58,32.50803256]
[1741743388613,34.3535,125.65,125.58,36.77333256]
[1741743388807,4.0135,125.65,125.58,36.77333256]
[1741743389011,43.77347498,125.67,125.59,16.64994519]
[1741743389408,8.02249343,125.64,125.62,0.0559274]
[1741743390813,7.9621,125.63,125.62,0.0559274]
[1741743391611,16.64994519,125.63,125.53,16.64994519]
[1741743391810,7.9638,125.61,125.54,36.6002]
[1741743392110,30.34,125.62,125.54,36.6002]
[1741743392310,38.3031,125.62,125.54,36.6002]
[1741743392612,34.4899,125.64,125.55,16.64994519]
[1741743392808,0.05587357,125.59,125.57,0.06014223]
[1741743393111,0.05514803,125.59,125.57,47.05008742]
[1741743393411,30.34,125.64,125.57,47.05008742]
[1741743393613,7.9614,125.65,125.61,7.9629]
[1741743394311,0.0517193,125.64,125.62,8.01527195]
[1741743394505,0.0517193,125.64,125.62,0.05257195]
[1741743394906,0.0517193,125.64,125.62,8.01527195]
[1741743395509,0.0517193,125.64,125.62,0.05257195]
[1741743396009,7.9621,125.63,125.62,0.05257195]
[1741743397107,46.98994519,125.63,125.48,238.9]
[1741743397412,16.64994519,125.61,125.55,7.9668]
[1741743398012,7.965,125.59,125.55,7.9668]
[1741743398211,0.05410804,125.59,125.57,0.05025481]
[1741743398712,0.05410804,125.59,125.57,8.01585481]
[1741743399014,0.05410804,125.59,125.57,0.05025481]
[1741743399211,0.05410804,125.59,125.58,7.9652]
[1741743399608,38.3009,125.65,125.57,30.39025481]
[1741743399806,38.3009,125.65,125.57,30.34]
[1741743400016,30.34,125.65,125.57,30.34]
[1741743400216,38.3011,125.65,125.61,7.9629]
[1741743400419,30.34,125.65,125.57,30.34]